bitfinex/quotes_ETHUSD_20220101
["timestamp","ask_amount","ask_price","bid_price","bid_amount"]
[1641001962898,1.32185757,3726.9,3726.6,0.00397896]
[1641001963100,4.83161116,3726.7,3726.6,0.00397896]
[1641001963347,3.39188387,3726.7,3726.6,0.00397896]
[1641001963742,3.39188387,3726.7,3726.4,0.00511581]
[1641001963943,3.39188387,3726.7,3726.6,2.7]
[1641001964143,4.06292387,3726.7,3726.6,2.7]
[1641001964345,4.06292387,3726.7,3726.6,2.70397896]
[1641001965146,4.06292387,3726.7,3726.6,2.70604952]
[1641001966146,5.38478144,3726.7,3726.6,2.70604952]
[1641001966848,4.06292387,3726.7,3726.6,2.70604952]
[1641001967503,5.38478144,3726.7,3726.6,2.70604952]
[1641001967702,3.02450873,3726.7,3726.6,2.70604952]
[1641001967905,1.32185757,3726.7,3726.6,2.70604952]
[1641001968507,1.32185757,3726.7,3726.6,18.35604952]
[1641001968706,1.32185757,3726.7,3726.6,2.70604952]
[1641001968907,3.04968182,3726.7,3726.6,2.70604952]
[1641001969709,1.07681275,3726.7,3726.6,18.35604952]
[1641001970410,4.12649457,3726.7,3726.6,18.58475011]
[1641001970610,4.12649457,3726.7,3726.6,2.93475011]
[1641001970833,4.12649457,3726.7,3726.6,0.00397896]
[1641001970834,3.44503037,3726.7,3726.6,0.00397896]
[1641001971041,3.44503037,3726.7,3725.3,6.18]
[1641001971042,5.61355056,3726.6,3725.3,6.18]
[1641001971342,0.91355056,3726.6,3725.4,0.00682108]
[1641001972138,1.2929374,3725.5,3725.4,0.00682108]
[1641001973938,1.2929374,3725.5,3725.4,18.35682108]
[1641001974137,1.2929374,3725.5,3725.4,2.70682108]
[1641001975084,1.2929374,3725.5,3725.4,18.35682108]
[1641001975284,0.06086968,3725.9,3725.4,18.35682108]
[1641001975486,0.06086968,3725.9,3725.4,18.65682108]
[1641001975686,0.06086968,3725.9,3725.5,15.65625266]
[1641001975887,0.06086968,3725.9,3725.5,16.65625266]
[1641001976083,0.06086968,3725.9,3725.6,0.00568424]
[1641001977289,1.37250478,3726.2,3725.6,0.00568424]
[1641001977493,1.37250478,3726.2,3725.5,11.65568424]
[1641001977690,0.00284212,3726.1,3725.5,10.65568424]
[1641001978090,0.0022737,3726.0,3725.6,2.54674163]
[1641001978329,0.0022737,3726.0,3725.7,10.65568424]
[1641001978531,0.00170528,3725.9,3725.8,13.40568424]
[1641001978932,0.00170528,3725.9,3725.8,14.00568424]
[1641001979132,0.00170528,3725.9,3725.8,15.00568424]
[1641001979331,0.00170528,3725.9,3725.8,1.6]
[1641001979530,0.00170528,3725.9,3725.8,0.6]
[1641001979732,0.00170528,3725.9,3725.8,16.25]
[1641001979930,0.00170528,3725.9,3725.8,15.65]
[1641001980131,0.00170528,3725.9,3725.8,17.25]
[1641001980533,0.00170528,3725.9,3725.8,1.6]
[1641001980932,0.00170528,3725.9,3725.8,0.6]
[1641001981132,0.00170528,3725.9,3725.5,17.25]
[1641001981534,0.00113685,3725.8,3725.5,17.25]
[1641001981731,0.00113685,3725.8,3725.6,1.26302785]
[1641001981986,0.00511582,3726.5,3725.7,15.65]
[1641001982189,0.00511582,3726.5,3725.8,16.65]
[1641001982390,0.91355056,3726.6,3725.8,17.25]
[1641001982391,0.00454739,3726.4,3725.8,17.25]
[1641001982590,0.00454739,3726.4,3725.9,15.65]
[1641001982790,0.00397897,3726.3,3725.9,15.65]
[1641001982989,0.00397897,3726.3,3725.9,15.95]
[1641001983191,0.00341055,3726.2,3725.9,15.95]
[1641001983592,0.00284212,3726.1,3725.9,15.95]
[1641001983990,0.0022737,3726.0,3725.9,15.95]
[1641001988538,0.0022737,3726.0,3725.9,16.95]
[1641001988940,0.0022737,3726.0,3725.9,17.062]
[1641001989139,0.0022737,3726.0,3725.9,17.0684]
[1641001989341,0.0022737,3726.0,3725.9,17.0724]
[1641001989588,0.0022737,3726.0,3725.9,17.0692]
[1641001989787,0.0022737,3726.0,3725.9,17.0652]
[1641001989989,0.0022737,3726.0,3725.9,17.0708]
[1641001990189,0.0022737,3726.0,3725.9,17.0596]
[1641001990390,0.0022737,3726.0,3725.9,16.95]
[1641001990590,0.0022737,3726.0,3725.9,17.054]
[1641001990792,0.0022737,3726.0,3725.9,16.95]
[1641001995537,0.0022737,3726.0,3725.9,12.25]
[1641001995739,0.0022737,3726.0,3725.9,1.3]
[1641001995940,0.0022737,3726.0,3725.8,1.3]
[1641001996338,0.91355056,3726.6,3725.8,1.3]
[1641001996339,0.00170528,3725.9,3725.8,1.3]
[1641001996537,0.00170528,3725.9,3725.8,1.0]
[1641001996983,0.00170528,3725.9,3725.7,1.97084]
[1641001997189,0.00170528,3725.9,3725.7,2.27084]
[1641001997386,0.00113685,3725.8,3725.7,2.27084]
[1641001998788,0.00113685,3725.8,3725.7,17.92084]
[1641002000596,2.86504455,3726.2,3725.8,4.5]
[1641002000836,2.86504455,3726.2,3725.7,2.27084]
[1641002001035,0.00170527,3726.1,3725.7,2.27084]
[1641002001537,0.00113685,3726.0,3725.7,2.27084]
[1641002002939,0.00113685,3726.0,3725.8,0.67085]
[1641002003140,0.00113685,3726.0,3725.8,1.97085]
[1641002003341,0.00113685,3726.0,3725.8,1.3]
[1641002003540,0.00113685,3726.0,3725.8,0.3]
[1641002004341,0.00113685,3726.0,3725.7,0.3]
[1641002004582,0.00113685,3726.0,3725.6,0.62482]
[1641002004787,0.00113685,3726.0,3725.6,1.98381343]
[1641002005383,0.00113685,3726.0,3725.6,3.32535343]
[1641002005682,0.00113685,3726.0,3725.8,0.67086]
[1641002006284,0.00113685,3726.0,3725.8,1.27086]
[1641002007087,0.00113685,3726.0,3725.7,1.6]
[1641002007491,0.00113685,3726.0,3725.6,0.58245287]
[1641002007690,0.00113685,3726.0,3725.8,0.3]
[1641002008090,0.00113685,3726.0,3725.6,0.58245287]
[1641002008351,0.00113685,3726.0,3725.6,0.28245287]
[1641002008552,0.00113685,3726.0,3725.5,1.3]
[1641002008951,0.00113685,3726.0,3725.6,0.00113685]
[1641002009651,1.36809245,3725.9,3725.6,0.00113685]
[1641002010252,1.36809245,3725.9,3725.4,2.7]
[1641002010253,1.36809245,3725.9,3725.5,0.00170527]
[1641002010653,2.68995002,3725.9,3725.5,0.00170527]
[1641002011461,1.36809245,3725.9,3725.5,0.00170527]
[1641002016133,2.2396833,3725.8,3725.5,0.00170527]
[1641002016331,2.29778441,3725.8,3725.5,0.00170527]
[1641002016532,3.29778441,3725.8,3725.5,0.00170527]
[1641002016933,3.23913219,3725.8,3725.5,0.00170527]
[1641002017134,3.2390126,3725.8,3725.5,0.00170527]
[1641002017335,1.0,3725.8,3725.5,0.00170527]
[1641002017535,1.36809245,3725.9,3725.5,0.00170527]
[1641002021200,3.05017825,3725.8,3725.5,0.00170527]
[1641002027224,5.33551571,3725.8,3725.5,0.00170527]
[1641002027427,0.67118,3725.7,3725.5,0.00170527]
[1641002027626,2.31807436,3725.6,3725.5,0.00170527]
[1641002028228,5.36825261,3725.6,3725.5,0.00170527]
[1641002028726,3.05017825,3725.6,3725.5,0.00170527]
[1641002030230,3.05017825,3725.7,3725.5,0.00170527]
[1641002030843,3.05017825,3725.8,3725.5,0.00170527]
[1641002031244,2.6,3725.7,3724.8,1.10836077]
[1641002031445,3.05017825,3725.8,3724.8,1.10836077]
[1641002031446,3.05017825,3725.8,3724.8,2.02949077]
[1641002031648,0.00113685,3725.7,3724.9,0.00341054]
[1641002032048,0.00113685,3725.7,3724.8,0.67113]
[1641002032248,0.00113685,3725.7,3724.8,2.01332]
[1641002032449,1.40105806,3725.6,3724.8,2.31332]
[1641002032747,1.40105806,3725.6,3725.0,0.67112]
[1641002033150,1.40105806,3725.6,3725.1,0.00227369]
[1641002034701,0.00113685,3725.7,3725.1,0.00227369]
[1641002035101,0.00113685,3725.7,3725.1,2.70227369]
[1641002035501,0.00113685,3725.7,3725.2,0.00170527]
[1641002036301,1.11609138,3725.6,3725.2,0.00170527]
[1641002036703,0.00113685,3725.7,3725.2,0.00170527]
[1641002037110,0.00113685,3725.7,3725.2,0.67279527]
[1641002037310,0.00113685,3725.7,3725.2,0.00170527]
[1641002037508,0.00113685,3725.7,3725.3,0.00113685]
[1641002037709,0.00113685,3725.7,3725.2,0.00170527]
[1641002038110,0.00113685,3725.7,3725.2,0.67278527]
[1641002038339,0.00113685,3725.7,3725.2,0.97278527]
[1641002038543,0.00113685,3725.7,3725.3,0.00113685]
[1641002039141,0.00113685,3725.7,3725.1,2.7]
[1641002039142,0.00113685,3725.7,3725.2,0.67277527]
[1641002039340,0.00113685,3725.7,3725.3,1.34202]
[1641002039541,1.33069749,3725.5,3725.3,0.00113685]
[1641002039942,1.33069749,3725.5,3725.2,0.00170527]
[1641002040946,0.00113685,3725.7,3725.2,0.00170527]
[1641002041349,0.2635,3725.6,3725.2,0.00170527]
[1641002042195,0.2635,3725.6,3724.8,5.02620168]
[1641002042401,0.00170527,3725.5,3724.8,5.32620168]
[1641002042594,0.00170527,3725.5,3724.9,0.00170527]
[1641002042798,0.00113685,3725.4,3724.9,0.00170527]
[1641002043200,0.00170527,3725.5,3724.9,0.00170527]
[1641002043597,0.00113685,3725.4,3724.7,0.00284212]
[1641002044099,0.00170527,3725.5,3724.7,0.67397212]
[1641002044497,0.00113685,3725.4,3724.8,0.00227369]
[1641002044896,2.56812333,3725.8,3724.8,0.00227369]
[1641002045096,0.26691054,3725.8,3724.8,0.00227369]
[1641002045297,0.00284212,3725.7,3724.8,0.00227369]
[1641002045497,3.05327204,3725.7,3724.8,0.00227369]
[1641002045751,0.00227369,3725.6,3724.8,3.93261161]
[1641002046151,0.00170527,3725.5,3724.8,3.93261161]
[1641002046551,0.00113685,3725.4,3724.8,3.93261161]
[1641002046954,0.00227369,3725.6,3724.8,1.23261161]
[1641002047359,0.00170527,3725.5,3724.8,1.23261161]
[1641002047762,0.00113685,3725.4,3724.8,1.23261161]
[1641002048261,0.2635,3725.5,3725.0,0.67114]
[1641002048463,0.2635,3725.5,3724.8,1.53261161]
[1641002048664,0.00113685,3725.4,3724.8,4.21691161]
[1641002048864,3.05156677,3725.4,3724.8,4.21691161]
[1641002049496,3.05156677,3725.4,3725.1,0.6711]
[1641002050701,3.05156677,3725.4,3725.2,0.67107]
[1641002050901,3.05156677,3725.4,3725.3,0.67108]
[1641002052704,3.05156677,3725.4,3725.1,0.67111]
[1641002052705,0.00113685,3725.4,3725.1,0.67111]
[1641002052907,0.26463685,3725.4,3725.1,0.67111]
[1641002053348,3.31506677,3725.4,3725.1,0.67111]
[1641002053747,3.31506677,3725.4,3725.2,0.67107]
[1641002054148,3.31506677,3725.4,3725.0,0.3]
[1641002054349,0.00284211,3725.3,3724.8,0.85906161]
[1641002054552,0.00284211,3725.3,3725.0,0.67105]
[1641002054750,0.00227369,3725.2,3725.0,2.68418]
[1641002055151,0.00170527,3725.1,3725.0,5.73418]
[1641002055349,0.00170527,3725.1,3725.0,5.06313]
[1641002055548,0.26520527,3725.1,3725.0,7.60918108]
[1641002055748,0.26520527,3725.1,3725.0,4.85918108]
[1641002056149,0.26520527,3725.1,3725.0,2.61313]
[1641002056349,0.26520527,3725.1,3725.0,2.31313]
[1641002056549,0.26520527,3725.1,3725.0,2.61313]
[1641002057008,0.26520527,3725.1,3725.0,4.85850847]
[1641002057215,0.26520527,3725.1,3725.0,2.61313]
[1641002059218,1.32185757,3726.2,3725.1,5.0]
[1641002059419,1.32185757,3726.2,3725.6,2.01144218]
[1641002059616,0.00568423,3726.1,3725.8,0.6708505]
[1641002060017,0.00511581,3726.0,3725.9,4.004]
[1641002060217,0.00511581,3726.0,3725.9,5.37045322]
[1641002060420,0.00511581,3726.0,3725.9,22.55815322]
[1641002060619,0.00511581,3726.0,3725.9,8.01055322]
[1641002060847,0.00511581,3726.0,3725.9,7.90815322]
[1641002061448,0.00511581,3726.0,3725.9,10.19107334]
[1641002061647,0.00511581,3726.0,3725.9,25.84107334]
[1641002061848,0.00511581,3726.0,3725.9,10.77597334]
[1641002062253,0.00511581,3726.0,3725.9,11.05842621]
[1641002063053,0.00511581,3726.0,3725.9,5.77597334]
[1641002063252,0.00511581,3726.0,3725.9,3.49305322]
[1641002063453,0.00511581,3726.0,3725.9,5.72270666]
[1641002063858,0.00511581,3726.0,3725.9,6.39354666]
[1641002064253,0.00511581,3726.0,3725.9,6.69354666]
[1641002065500,0.00511581,3726.0,3725.9,2.70815322]
[1641002065898,0.00511581,3726.0,3725.9,3.00815322]
[1641002066097,0.00511581,3726.0,3725.9,2.70815322]
[1641002066300,3.0548155,3726.0,3725.9,2.70815322]
[1641002067399,3.0548155,3726.0,3725.9,5.40815322]
[1641002067604,3.0548155,3726.0,3725.9,5.70815322]
[1641002067799,3.0548155,3726.0,3725.9,5.40815322]
[1641002068844,3.0048155,3726.0,3725.9,5.70815322]
[1641002069643,0.06067171,3726.4,3726.1,0.67088]
[1641002069845,0.06067171,3726.4,3726.1,1.34176]
[1641002070048,0.00170527,3726.3,3726.1,2.68349]
[1641002070444,0.00113685,3726.2,3726.1,2.98349]
[1641002070646,0.06067171,3726.4,3726.2,4.7]
[1641002070947,0.06067171,3726.4,3726.1,5.3628295]
[1641002070948,0.06067171,3726.4,3726.3,3.07070368]
[1641002071145,0.06067171,3726.4,3726.3,4.07070368]
[1641002071345,0.00113684,3726.4,3726.3,0.67071]
[1641002072995,0.00113684,3726.4,3726.3,0.97071]
[1641002073495,0.00113684,3726.4,3726.3,0.67071]
[1641002076772,0.00113684,3726.4,3726.1,1.34173]
[1641002078376,0.00113684,3726.4,3726.1,2.01266]
[1641002078575,0.00113684,3726.4,3726.1,2.68357]
[1641002079176,0.00113684,3726.4,3725.9,4.43362322]
[1641002079591,0.00113684,3726.4,3726.2,0.67093]
[1641002084746,0.00113684,3726.4,3726.0,2.01389685]
[1641002084747,0.00113684,3726.4,3726.0,0.67210685]
[1641002084946,0.00113684,3726.4,3726.0,0.00113685]
[1641002086846,0.00113684,3726.4,3725.9,2.65113685]
[1641002087102,0.00170527,3726.3,3725.9,2.65113685]
[1641002087497,0.00113685,3726.2,3725.9,2.65113685]
[1641002087897,0.00170527,3726.3,3725.9,2.65113685]
[1641002088097,1.00519265,3726.1,3725.9,2.65113685]
[1641002088899,3.04998664,3726.0,3725.9,2.65113685]
[1641002089301,3.04998664,3726.0,3725.9,2.60113685]
[1641002091045,3.04998664,3726.0,3725.1,4.04666418]
[1641002091239,3.04998664,3726.0,3725.4,0.67103]
[1641002091439,3.04998664,3726.0,3725.5,0.67103]
[1641002091840,3.04998664,3726.0,3725.6,0.0022737]
[1641002092443,3.04998664,3726.0,3725.6,2.0153237]
[1641002092645,3.04998664,3726.0,3725.6,1.3442737]
[1641002092844,3.04998664,3726.0,3725.7,0.00170527]
[1641002093647,3.04998664,3726.0,3725.8,0.67102]
[1641002096902,3.04998664,3726.0,3725.8,3.37102]
[1641002098746,0.00113685,3726.2,3725.8,3.37102]
[1641002098949,0.00113685,3726.2,3725.9,1.34183]
[1641002099146,0.00113685,3726.2,3726.0,0.67092]
[1641002100649,0.00113685,3726.2,3725.8,2.39641]
[1641002101352,0.00113685,3726.2,3725.9,1.34183]
[1641002101552,0.00113685,3726.2,3726.0,0.67092]
[1641002102222,1.11779461,3726.1,3726.0,0.67092]
[1641002103421,0.00113685,3726.2,3726.0,0.67092]
[1641002104423,0.00113685,3726.2,3726.0,2.06111417]
[1641002104623,0.00113685,3726.2,3726.0,2.73202417]
[1641002106042,0.00113685,3726.2,3726.0,1.34183]
[1641002108452,0.00113685,3726.2,3726.1,2.14652899]
[1641002109051,0.00113685,3726.2,3726.1,3.14652899]
[1641002109603,0.00113685,3726.2,3726.1,4.1592418]
[1641002111310,0.00113685,3726.2,3726.1,2.01271281]
[1641002111509,0.00113685,3726.2,3726.1,4.35648084]
[1641002111914,0.00113685,3726.2,3726.1,4.3306484]
[1641002112912,0.00113685,3726.2,3726.1,20.2806484]
[1641002113549,0.06067163,3726.9,3726.4,2.012134]
[1641002113750,0.06067163,3726.9,3726.5,2.26714236]
[1641002113950,0.06067163,3726.9,3726.5,2.56714236]
[1641002114151,0.06067163,3726.9,3726.5,3.86714236]
[1641002114350,0.06067163,3726.9,3726.5,1.6]
[1641002114553,0.06067163,3726.9,3726.5,0.6]
[1641002114750,0.06067163,3726.9,3726.5,0.3]
[1641002114950,0.06067163,3726.9,3726.4,2.68283]
[1641002115253,2.02681263,3725.6,3725.4,0.3178]
[1641002115455,2.69804263,3725.6,3725.4,0.3178]
[1641002115752,4.7,3725.5,3725.4,0.0023737]
[1641002115951,4.7,3725.5,3725.0,2.64601418]
[1641002115952,10.46113442,3725.5,3725.0,2.64601418]
[1641002116152,2.42350089,3725.4,3725.2,0.67491406]
[1641002116354,4.7,3725.2,3723.8,6.18]
[1641002116656,0.6714,3724.7,3723.9,0.00909477]
[1641002116853,0.9714,3724.7,3723.9,0.00909477]
[1641002117105,0.9714,3724.7,3723.3,0.01250531]
[1641002117311,0.3,3724.7,3724.5,1.41161873]
[1641002117506,3.17635743,3724.6,3724.5,1.26161873]
[1641002117703,1.02264397,3724.6,3724.5,1.26161873]
[1641002117902,3.22449539,3724.6,3724.5,1.26161873]
[1641002118103,4.05,3724.5,3723.2,3.20364703]
[1641002118303,2.18400671,3724.4,3723.2,3.87498703]
[1641002118506,2.18400671,3724.4,3723.3,0.01250531]
[1641002119207,2.18400671,3724.4,3723.3,0.31250531]
[1641002119405,1.02264397,3724.6,3723.3,0.31250531]
[1641002119607,1.02264397,3724.6,3723.8,6.18]
[1641002119906,0.01221307,3724.7,3723.8,6.18]
[1641002119907,0.01221307,3724.7,3723.9,0.00909477]
[1641002120503,0.01221307,3724.7,3723.4,0.67126]
[1641002120504,0.01221307,3724.7,3723.4,0.01193689]
[1641002120748,2.23970838,3725.3,3723.8,0.67127]
[1641002120949,1.27895007,3725.1,3724.2,1.14012856]
[1641002121153,5.95099985,3725.5,3724.2,1.14012856]
[1641002121352,0.01283427,3725.5,3724.3,0.00682108]
[1641002121752,3.05098898,3725.2,3724.3,0.00682108]
[1641002122157,1.1521851,3725.1,3724.3,0.00682108]
[1641002122956,0.01283427,3725.5,3724.3,0.00682108]
[1641002123557,3.05086882,3725.4,3724.3,0.00682108]
[1641002123755,3.05086882,3725.4,3724.2,1.14012856]
[1641002123756,2.95,3725.3,3724.2,1.09694964]
[1641002123956,0.00568423,3725.3,3724.2,1.09694964]
[1641002124156,1.36952949,3725.2,3724.2,1.09694964]
[1641002124597,0.00454739,3725.1,3724.2,1.09694964]
[1641002124999,0.00397896,3725.0,3724.2,1.09694964]
[1641002125402,0.00341054,3724.9,3724.2,1.09694964]
[1641002125601,0.00341054,3724.9,3724.3,0.67119]
[1641002125800,0.00284212,3724.8,3724.3,0.67119]
[1641002126200,0.00227369,3724.7,3724.3,0.67119]
[1641002126401,0.00227369,3724.7,3724.3,0.62119]
[1641002126603,0.00170527,3724.6,3724.3,0.62119]
[1641002127002,1.36441368,3725.2,3724.3,0.62119]
[1641002127003,0.00113685,3724.5,3724.3,0.62119]
[1641002127407,3.05553759,3725.1,3724.3,0.62119]
[1641002127807,0.00397896,3725.0,3724.3,0.62119]
[1641002128010,0.00397896,3725.0,3724.3,0.92119]
[1641002128247,0.00341054,3724.9,3724.3,0.92119]
[1641002128649,0.00284212,3724.8,3724.0,1.17028108]
[1641002128851,0.00284212,3724.8,3724.2,0.3]
[1641002129047,0.01283427,3725.5,3724.1,2.2218661]
[1641002129048,0.00227369,3724.7,3724.1,2.2218661]
[1641002129247,0.00227369,3724.7,3724.1,1.2218661]
[1641002129449,0.00170527,3724.6,3724.2,0.67116]
[1641002129649,0.00170527,3724.6,3724.3,0.67119]
[1641002129850,0.00113685,3724.5,3724.3,0.67119]
[1641002130251,1.04693701,3725.2,3724.3,0.67119]
[1641002130649,0.00454739,3725.1,3724.3,0.67119]
[1641002130851,3.05549841,3725.1,3724.3,0.67119]
[1641002131153,0.00397896,3725.0,3724.3,0.67119]
[1641002131552,0.00341054,3724.9,3724.3,0.67119]
[1641002131999,0.00284212,3724.8,3724.1,1.8218661]
[1641002132406,0.00227369,3724.7,3724.1,1.8218661]
[1641002132808,3.05093761,3725.1,3724.1,1.8218661]
[1641002132809,0.00170527,3724.6,3724.1,1.8218661]
[1641002133005,0.00170527,3724.6,3724.1,2.4930861]
[1641002133206,0.00113685,3724.5,3724.1,2.4930861]
[1641002133607,0.00397896,3725.0,3724.1,2.4930861]
[1641002134005,0.00341054,3724.9,3724.1,2.4930861]
[1641002134206,0.00341054,3724.9,3724.3,0.67119]
[1641002134405,3.05093761,3725.1,3724.1,0.00113685]
[1641002134406,0.00284212,3724.8,3724.1,0.00113685]
[1641002134804,3.05093761,3725.1,3724.1,0.00113685]
[1641002134805,0.00227369,3724.7,3724.1,0.00113685]
[1641002135209,0.00170527,3724.6,3724.1,0.00113685]
[1641002135747,0.00113685,3724.5,3724.1,0.00113685]
[1641002136148,0.00284212,3724.8,3724.1,0.00113685]
[1641002136551,0.00227369,3724.7,3724.1,0.00113685]
[1641002136948,0.00170527,3724.6,3724.1,0.00113685]
[1641002137355,1.24685618,3724.9,3724.1,0.00113685]
[1641002137757,0.00170527,3724.8,3723.9,0.00341054]
[1641002138154,0.00113684,3724.7,3723.9,0.00341054]
[1641002138358,0.00113684,3724.7,3723.8,0.00397897]
[1641002141799,1.36201352,3724.3,3723.6,4.83247789]
[1641002142105,0.0022737,3724.2,3723.6,4.83247789]
[1641002142510,0.00170527,3724.1,3723.6,4.83247789]
[1641002142708,0.00170527,3724.1,3723.7,1.34245]
[1641002142912,0.00113685,3724.0,3723.7,1.34245]
[1641002143108,0.00113685,3724.0,3723.5,2.15201753]
[1641002143362,0.0022737,3724.2,3723.4,1.94256]
[1641002143562,0.0022737,3724.2,3723.6,0.00113684]
[1641002143763,0.00170527,3724.1,3723.5,0.00170527]
[1641002144167,0.00113685,3724.0,3723.7,1.25158321]
[1641002144566,0.0022737,3724.2,3723.7,1.25158321]
[1641002145067,2.81509482,3725.4,3723.7,1.25158321]
[1641002145068,0.00170527,3724.1,3723.7,1.25158321]
[1641002145471,0.00113685,3724.0,3723.9,0.67127]
[1641002145669,0.00113685,3724.0,3723.9,2.9589605]
[1641002146068,0.00113685,3724.0,3723.9,0.67127]
[1641002147912,0.00113685,3724.0,3723.9,2.8446955]
[1641002148812,0.00113685,3724.0,3723.9,0.67127]
[1641002149013,0.00113685,3724.0,3723.9,2.84192348]
[1641002149214,0.00113685,3724.0,3723.9,0.67127]
[1641002150751,0.00113685,3724.0,3723.7,2.59402321]
[1641002151855,0.00113685,3724.0,3723.8,0.67127]
[1641002152258,0.00113685,3724.0,3723.5,0.00170527]
[1641002152657,0.00113685,3724.0,3723.4,0.67138]
[1641002153058,0.00113685,3724.0,3723.5,0.00170527]
[1641002153262,1.15801433,3723.9,3723.5,0.00170527]
[1641002153458,0.00113685,3724.0,3723.5,0.00170527]
[1641002153658,0.00113685,3724.0,3723.6,0.67133]
[1641002156404,0.00113685,3724.0,3723.4,0.97139]
[1641002156607,0.00113685,3724.0,3723.4,0.67139]
[1641002156806,0.00113685,3724.0,3723.5,0.00170527]
[1641002157508,0.00113685,3724.0,3723.4,0.00227369]
[1641002157711,0.00113685,3724.0,3723.6,1.34264]
[1641002157909,0.00113685,3724.0,3723.6,1.3]
[1641002158110,0.00113685,3724.0,3723.6,0.3]
[1641002158366,0.00113685,3724.0,3723.5,1.34257]
[1641002158556,0.00113685,3724.0,3723.5,0.3]
[1641002158756,0.00284212,3723.9,3723.5,1.09460953]
[1641002159158,0.00227369,3723.8,3723.5,1.39460953]
[1641002159659,0.00170527,3723.7,3723.5,1.39460953]
[1641002159862,0.00170527,3723.7,3723.5,1.69460953]
[1641002160058,0.00113685,3723.6,3723.5,1.69460953]
[1641002160259,0.00113685,3723.6,3723.5,1.39460953]
[1641002160459,0.00113685,3723.6,3723.5,4.37964953]
[1641002160659,0.00113685,3723.6,3723.5,5.37964953]
[1641002161760,0.00113685,3723.6,3723.5,4.37964953]
[1641002163614,0.00113685,3723.6,3723.5,3.77964953]
[1641002164014,0.00113685,3723.6,3723.5,4.37964953]
[1641002167472,3.05125772,3724.6,3723.6,4.7]
[1641002167668,3.05125772,3724.6,3724.0,0.67113]
[1641002167869,0.00511581,3724.5,3724.3,0.67114]
[1641002168067,0.00511581,3724.5,3724.3,0.8594]
[1641002168269,0.00454738,3724.4,3724.3,0.8594]
[1641002168767,3.0558051,3724.4,3724.3,0.8594]
[1641002169369,3.0558051,3724.4,3724.3,2.20174]
[1641002171408,3.0558051,3724.4,3724.1,0.88509923]
[1641002171808,0.00397896,3724.3,3724.1,0.88509923]
[1641002172008,0.00397896,3724.3,3724.2,1.34228]
[1641002172212,0.0606741,3724.8,3724.2,1.34228]
[1641002172213,0.07309821,3724.8,3724.2,1.34228]
[1641002172414,0.07309821,3724.8,3724.0,0.67129]
[1641002172613,0.00625265,3724.7,3724.0,0.67129]
[1641002172812,3.05114163,3724.3,3724.0,0.67129]
[1641002173270,1.34229087,3724.2,3724.0,0.67129]
[1641002173471,1.34229087,3724.2,3723.8,0.67133]
[1641002173674,0.00284211,3724.1,3723.8,0.67133]
[1641002174073,0.00227369,3724.0,3723.8,0.67133]
[1641002174472,1.33888033,3724.2,3723.8,0.67133]
[1641002174473,0.00170527,3723.9,3723.8,0.67133]
[1641002183260,0.00170527,3723.9,3723.8,0.97133]
[1641002183462,0.00170527,3723.9,3723.8,0.67133]
[1641002183862,2.8028469,3724.5,3723.8,0.67133]
[1641002184063,1.12174449,3724.6,3723.8,0.67133]
[1641002184267,0.00284211,3724.4,3723.8,0.67133]
[1641002184702,0.00227369,3724.3,3723.8,0.67133]
[1641002185202,0.00170527,3724.2,3723.8,0.67133]
[1641002185600,1.12174449,3724.6,3723.8,0.67133]
[1641002185601,0.00113684,3724.1,3723.8,0.67133]
[1641002186004,0.00341054,3724.5,3723.9,0.67126]
[1641002186202,0.00341054,3724.5,3724.2,0.67122]
[1641002188364,0.00341054,3724.5,3724.3,0.67119]
[1641002188563,0.00341054,3724.5,3724.3,1.87800511]
[1641002189370,0.00341054,3724.5,3724.3,2.47800511]
[1641002190567,0.00341054,3724.5,3724.3,3.14908061]
[1641002191767,0.00341054,3724.5,3724.3,2.47800511]
[1641002192721,0.00341054,3724.5,3724.3,1.87800511]
[1641002192922,0.00341054,3724.5,3724.3,1.20681511]
[1641002193121,0.00341054,3724.5,3724.3,1.87804511]
[1641002193322,0.00341054,3724.5,3724.0,1.34249]
[1641002193922,0.00341054,3724.5,3724.1,1.34246]
[1641002194321,0.00341054,3724.5,3724.2,0.67126]
[1641002194921,0.00341054,3724.5,3724.2,1.34247]
[1641002195120,0.00341054,3724.5,3724.2,1.34242]
[1641002195521,0.00341054,3724.5,3724.3,0.67119]
[1641002202316,0.00341054,3724.5,3724.4,1.34223]
[1641002207330,3.0542125,3724.5,3724.4,1.34223]
[1641002207929,0.00341054,3724.5,3724.4,1.34223]
[1641002211581,3.05434958,3724.5,3724.4,1.34223]
[1641002213384,3.05434958,3724.5,3724.4,1.64223]
[1641002213586,3.05434958,3724.5,3724.4,1.34223]
[1641002213984,3.05434958,3724.5,3724.4,1.64223]
[1641002214618,0.00341054,3724.5,3724.4,1.64223]
[1641002215821,3.05423506,3724.5,3724.4,1.64223]
[1641002216924,3.05423506,3724.5,3724.4,1.34223]
[1641002217127,2.55423506,3724.5,3724.4,1.34223]
[1641002218271,1.35818047,3725.1,3724.4,1.64223]
[1641002218472,1.35818047,3725.1,3724.8,0.67115]
[1641002218672,0.00284211,3725.0,3724.8,0.67115]
[1641002219172,0.00227369,3724.9,3724.8,0.67115]
[1641002220773,0.00227369,3724.9,3724.8,0.97115]
[1641002221374,0.00227369,3724.9,3724.8,2.3639387]
[1641002222018,0.00227369,3724.9,3724.8,2.0639387]
[1641002225224,1.37794191,3725.4,3724.8,2.0639387]
[1641002225423,1.3302156,3725.4,3724.8,2.0639387]
[1641002225631,0.00227369,3725.3,3724.8,3.4061987]
[1641002225864,0.00227369,3725.3,3725.0,0.67113]
[1641002226066,0.00170527,3725.2,3725.0,0.67113]
[1641002226466,0.00113685,3725.1,3725.0,0.67113]
[1641002237510,0.00113685,3725.1,3725.0,0.67481441]
[1641002239711,0.00113685,3725.1,3724.6,2.26985817]
[1641002240112,0.00113685,3725.1,3724.7,0.00113685]
[1641002240311,1.23642322,3725.1,3724.7,0.00113685]
[1641002240510,1.23642322,3725.1,3725.0,0.6711]
[1641002240761,0.00113685,3725.1,3725.0,0.6711]
[1641002243068,0.00113685,3725.1,3724.7,0.00113685]
[1641002243571,0.00113685,3725.1,3724.2,0.00397896]
[1641002244069,1.39180511,3725.0,3724.2,0.00397896]
[1641002244267,1.11937998,3724.3,3724.2,0.00397896]
[1641002244709,1.11937998,3724.3,3724.2,0.76147896]
[1641002245211,3.20935216,3724.3,3724.2,0.09017896]
[1641002245610,4.20935216,3724.3,3724.2,0.09017896]
[1641002245811,3.20935216,3724.3,3724.2,0.09017896]
[1641002246009,4.20935216,3724.3,3724.2,0.09017896]
[1641002247011,2.11937998,3724.3,3724.2,0.09017896]
[1641002247215,1.11937998,3724.3,3724.2,0.09017896]